fUST/lending_fUST_20250802
["ID","MTS","AMOUNT","RATE_DAILY","PERIOD"]
[376656381,1754074241247,-53445.8932898,0.00026256,2]
[376656382,1754074241256,-200.0,0.00026273,15]
[376656383,1754074241265,-200.0,0.00026273,15]
[376656384,1754074241274,-200.0,0.00026273,15]
[376656385,1754074241285,-200.0,0.00026273,15]
[376656386,1754074241294,-200.0,0.00026273,15]
[376656387,1754074241303,-200.0,0.00026273,15]
[376656388,1754074241312,-200.0,0.00026273,15]
[376656389,1754074241321,-200.0,0.00026273,15]
[376656390,1754074241330,-200.0,0.00026273,15]
[376656391,1754074241339,-394.0,0.00026273,15]
[376656392,1754074241348,-316.19232218,0.00026318,2]
[376656393,1754074241357,-460.0,0.00026451,2]
[376656395,1754074241366,-460.0,0.00026451,2]
[376656397,1754074241375,-460.0,0.00026451,2]
[376656399,1754074241384,-460.0,0.00026451,2]
[376656401,1754074241393,-460.0,0.00026451,2]
[376656403,1754074241402,-206.0,0.0002649,2]
[376656405,1754074241412,-500.0,0.00026499,10]
[376656407,1754074241420,-2889.63,0.000265,7]
[376656409,1754074241429,-435.43,0.000265,2]
[376656411,1754074241439,-1133.10224202,0.00026521,15]
[376656413,1754074241448,-535.07,0.000266,7]
[376656415,1754074241460,-460.0,0.00026725,2]
[376656417,1754074241470,-460.0,0.00026725,2]
[376656419,1754074241479,-1133.10224202,0.00026797,15]
[376656421,1754074241488,-800.0,0.0002683,2]
[376656423,1754074241497,-206.0,0.0002684,2]
[376656425,1754074241506,-151.0,0.000269,2]
[376656427,1754074241515,-151.0,0.000269,2]
[376656429,1754074241524,-151.0,0.000269,2]
[376656431,1754074241536,-151.0,0.000269,2]
[376656433,1754074241545,-243.02184741,0.000269,2]
[376656435,1754074241554,-243.02184741,0.000269,2]
[376656437,1754074241563,-800.0,0.00026957,2]
[376656439,1754074241572,-304.06,0.0002697,10]
[376656441,1754074241582,-253.38,0.0002697,10]
[376656443,1754074241591,-211.15,0.0002697,10]
[376656445,1754074241601,-106891.78658,0.0002697,2]
[376656447,1754074241610,-523.6,0.0002698,10]
[376656449,1754074241619,-460.0,0.00026999,2]
[376656451,1754074241628,-460.0,0.00026999,2]
[376656453,1754074241637,-2000.0,0.00027,2]
[376656455,1754074241646,-151.0,0.00027,2]
[376656458,1754074241655,-151.0,0.00027,2]
[376656460,1754074241665,-151.0,0.00027,2]
[376656462,1754074241674,-151.0,0.00027,2]
[376656464,1754074241683,-312.16666667,0.00027,3]
[376656466,1754074241694,-43879.99965402,0.00027032,2]
[376656468,1754074241704,-1075.70319511,0.00027037,2]
[376656470,1754074241713,-496.635749,0.00027037,2]
[376656472,1754074241722,-311.49561536,0.00027037,2]
[376656474,1754074241731,-162.907337,0.00027054,15]
[376656476,1754074241741,-1133.10224202,0.00027072,16]
[376656478,1754074241750,-151.0,0.000271,2]
[376656480,1754074241760,-151.0,0.000271,2]
[376656482,1754074241770,-151.0,0.000271,2]
[376656484,1754074241781,-184.04369482,0.000271,2]
[376656486,1754074241792,-151.0,0.00027119,7]
[376656488,1754074241802,-151.0,0.00027119,7]
[376656490,1754074241811,-151.0,0.00027119,7]
[376656492,1754074241821,-151.0,0.00027119,7]
[376656494,1754074241830,-151.0,0.00027119,7]
[376656496,1754074241839,-153.709726,0.00027119,7]
[376656498,1754074241848,-245.28770264,0.00027122,2]
[376656500,1754074241857,-151.0,0.00027122,10]
[376656502,1754074241870,-151.0,0.00027122,10]
[376656504,1754074241879,-151.0,0.00027122,10]
[376656506,1754074241889,-500.0,0.00027122,10]
[376656508,1754074241898,-268.0,0.00027122,2]
[376656510,1754074241907,-151.0,0.00027124,7]
[376656512,1754074241916,-151.0,0.00027124,7]
[376656514,1754074241926,-151.0,0.00027124,7]
[376656516,1754074241935,-151.0,0.00027124,7]
[376656518,1754074241945,-151.0,0.00027124,7]
[376656520,1754074241954,-151.0,0.00027124,7]
[376656522,1754074241963,-151.0,0.00027124,7]
[376656524,1754074241973,-151.0,0.00027124,7]
[376656526,1754074241982,-151.0,0.00027124,7]
[376656528,1754074241992,-151.0,0.00027124,7]
[376656530,1754074242001,-151.0,0.00027124,7]
[376656533,1754074242010,-151.0,0.00027124,7]
[376656535,1754074242019,-179.780886,0.00027124,7]
[376656537,1754074242029,-151.0,0.00027132,7]
[376656539,1754074242039,-151.0,0.00027132,7]
[376656541,1754074242048,-151.0,0.00027132,7]
[376656543,1754074242057,-204.357016,0.00027132,7]
[376656545,1754074242067,-151.0,0.00027132,7]
[376656547,1754074242076,-151.0,0.00027132,7]
[376656549,1754074242085,-151.0,0.00027132,7]
[376656551,1754074242094,-151.0,0.00027132,7]
[376656553,1754074242103,-151.0,0.00027132,7]
[376656555,1754074242112,-273.959632,0.00027132,7]
[376656556,1754074242121,-151.0,0.00027132,7]
[376656558,1754074242130,-151.0,0.00027132,7]
[376656561,1754074242139,-151.0,0.00027132,7]
[376656563,1754074242149,-151.0,0.00027132,7]
[376656564,1754074242158,-151.0,0.00027132,7]
[376656566,1754074242167,-151.0,0.00027132,7]
[376656569,1754074242176,-151.0,0.00027132,7]
[376656571,1754074242185,-151.0,0.00027132,7]
[376656573,1754074242194,-151.0,0.00027132,7]
[376656575,1754074242203,-151.0,0.00027132,7]
[376656577,1754074242212,-151.0,0.00027132,7]
[376656578,1754074242221,-151.0,0.00027132,7]
[376656580,1754074242230,-151.0,0.00027132,7]
[376656582,1754074242239,-151.0,0.00027132,7]
[376656585,1754074242248,-151.0,0.00027132,7]
[376656587,1754074242258,-151.0,0.00027132,7]
[376656589,1754074242267,-237.87964,0.00027132,7]
[376656591,1754074242277,-151.0,0.00027132,7]
[376656593,1754074242286,-151.0,0.00027132,7]
[376656595,1754074242295,-151.0,0.00027132,7]
[376656596,1754074242304,-151.0,0.00027132,7]
[376656599,1754074242313,-151.0,0.00027132,7]
[376656601,1754074242322,-151.0,0.00027132,7]
[376656603,1754074242331,-151.0,0.00027132,7]
[376656605,1754074242340,-299.066887,0.00027132,7]
[376656606,1754074242349,-151.0,0.00027135,7]
[376656609,1754074242358,-151.0,0.00027135,7]
[376656611,1754074242368,-151.0,0.00027135,7]
[376656613,1754074242377,-152.651226,0.00027135,7]
[376656615,1754074242386,-152.995188,0.00027135,7]
[376656617,1754074242395,-1646.30259514,0.00027137,2]
[376656619,1754074242405,-568680.1543761,0.00027137,20]
[376656622,1754074242424,-270.70388902,0.00027137,20]
[376656624,1754074242436,-3369.12503415,0.00027137,20]
[376656626,1754074242448,-423.54996,0.00027137,20]
[376657008,1754074246241,-1664.85236532,0.00027137,20]
[376657016,1754074246296,-1655.01680734,0.00027137,20]
[376657018,1754074246309,-380649.22399387,0.00027137,20]
[376657021,1754074246321,-490.66197027,0.00027137,20]
[376657660,1754074650169,2005.2026464,0.00018462,2]
[376657661,1754074763490,5000.0,0.0001885,2]
[376657663,1754074901162,1000.0,0.00018436,2]
[376657664,1754075022572,-453.86478433,0.000189,2]
[376657665,1754075022595,-228.88690306,0.000189,2]
[376657666,1754075022617,-169.53189436,0.00019078,2]
[376657667,1754075022639,-195.3829843,0.00019178,2]
[376657668,1754075022661,-666.0,0.00019178,2]
[376657669,1754075022682,-1269.0,0.00019186,2]
[376657670,1754075022706,-158.82230415,0.00019361,2]
[376657671,1754075022728,-300.0,0.00019459,2]
[376657672,1754075022752,-460.0,0.0001946,2]
[376657673,1754075022773,-460.0,0.0001946,2]
[376657674,1754075022795,-460.0,0.0001946,2]
[376657675,1754075022816,-410.63133996,0.0001946,2]
[376657676,1754075022839,-460.0,0.0001946,2]
[376657677,1754075022864,-460.0,0.0001946,2]
[376657678,1754075022888,-460.0,0.0001946,2]
[376657679,1754075022914,-461.96488414,0.0001946,2]
[376657680,1754075022939,-460.0,0.0001946,2]
[376657681,1754075022967,-460.0,0.0001946,2]
[376657682,1754075022992,-460.0,0.0001946,2]
[376657683,1754075023019,-460.0,0.0001946,2]
[376657684,1754075023045,-460.0,0.0001946,2]
[376657685,1754075023075,-460.0,0.0001946,2]
[376657686,1754075023101,-460.0,0.0001946,2]
[376657687,1754075023126,-460.0,0.0001946,2]
[376657688,1754075023150,-460.0,0.0001946,2]
[376657689,1754075023174,-460.0,0.0001946,2]
[376657690,1754075023202,-460.0,0.0001946,2]
[376657691,1754075023227,-460.0,0.0001946,2]
[376657692,1754075023250,-460.0,0.0001946,2]
[376657693,1754075023273,-460.0,0.0001946,2]
[376657694,1754075023296,-460.0,0.0001946,2]
[376657695,1754075023318,-365.08484645,0.0001946,2]
[376657696,1754075023339,-50000.0,0.0001946,2]
[376657697,1754075023362,-460.0,0.0001946,2]
[376657698,1754075023386,-509.9,0.0001946,2]
[376657699,1754075023408,-460.0,0.0001946,2]
[376657700,1754075023431,-458.51361216,0.0001946,2]
[376657701,1754075023456,-158.08406313,0.0001946,2]
[376657702,1754075023478,-460.0,0.00019461,2]
[376657703,1754075023501,-460.0,0.00019461,2]
[376657704,1754075023524,-310.26875273,0.00019461,2]
[376657705,1754075023546,-460.0,0.00019461,2]
[376657706,1754075023570,-460.0,0.00019461,2]
[376657707,1754075023596,-460.0,0.00019461,2]
[376657708,1754075023620,-426.83764551,0.00019461,2]
[376657709,1754075023644,-460.0,0.00019461,2]
[376657710,1754075023668,-460.0,0.00019461,2]
[376657711,1754075023690,-460.0,0.00019461,2]
[376657712,1754075023720,-460.0,0.00019461,2]
[376657713,1754075023744,-572.95,0.00019461,2]
[376657714,1754075023767,-460.0,0.00019461,2]
[376657715,1754075023790,-460.0,0.00019461,2]
[376657716,1754075023814,-460.0,0.00019461,2]
[376657717,1754075023836,-449.93339625,0.00019461,2]
[376657718,1754075023859,-388.81990747,0.00019461,2]
[376657719,1754075023882,-460.0,0.00019461,2]
[376657720,1754075023906,-468.27,0.00019461,2]
[376657721,1754075023929,-460.0,0.00019461,2]
[376657722,1754075023956,-460.0,0.00019461,2]
[376657723,1754075023979,-460.0,0.00019461,2]
[376657724,1754075024002,-460.0,0.00019461,2]
[376657725,1754075024026,-460.0,0.00019461,2]
[376657726,1754075024050,-460.0,0.00019461,2]
[376657727,1754075024079,-460.0,0.00019461,2]
[376657728,1754075024107,-460.0,0.00019461,2]
[376657729,1754075024130,-460.0,0.00019461,2]
[376657730,1754075024154,-460.0,0.00019461,2]
[376657731,1754075024177,-460.0,0.00019461,2]
[376657732,1754075024203,-460.0,0.00019461,2]
[376657733,1754075024226,-460.0,0.00019461,2]
[376657734,1754075024250,-460.0,0.00019461,2]
[376657735,1754075024378,-514.24929627,0.00019461,2]
[376657736,1754075024402,-460.0,0.00019461,2]
[376657737,1754075024424,-460.0,0.00019461,2]
[376657738,1754075024449,-460.0,0.00019461,2]
[376657739,1754075024471,-460.0,0.00019461,2]
[376657740,1754075024496,-460.0,0.00019461,2]
[376657741,1754075024520,-460.0,0.00019461,2]
[376657742,1754075024544,-460.0,0.00019461,2]
[376657743,1754075024568,-460.0,0.00019461,2]
[376657744,1754075024591,-460.0,0.00019461,2]
[376657745,1754075024613,-475.45596695,0.00019461,2]
[376657746,1754075024636,-371.38464717,0.00019461,2]
[376657747,1754075024660,-294.31322084,0.00019461,2]
[376657748,1754075024683,-460.0,0.00019461,2]
[376657749,1754075024708,-460.0,0.00019461,2]
[376657750,1754075024731,-460.0,0.00019461,2]
[376657751,1754075024753,-460.0,0.00019461,2]
[376657752,1754075024776,-460.0,0.00019461,2]
[376657753,1754075024798,-460.0,0.00019461,2]
[376657754,1754075024821,-460.0,0.00019461,2]
[376657755,1754075024844,-460.0,0.00019461,2]
[376657756,1754075024868,-460.0,0.00019461,2]
[376657757,1754075024891,-460.0,0.00019461,2]
[376657758,1754075024915,-460.0,0.00019461,2]
[376657759,1754075024937,-191.07,0.00019461,2]
[376657760,1754075024963,-460.0,0.00019461,2]
[376657761,1754075024985,-460.0,0.00019461,2]
[376657762,1754075025008,-460.0,0.00019461,2]
[376657763,1754075025033,-460.0,0.00019461,2]
[376657764,1754075025057,-460.0,0.00019461,2]
[376657765,1754075025083,-460.0,0.00019461,2]
[376657766,1754075025108,-460.0,0.00019461,2]
[376657767,1754075025132,-460.0,0.00019461,2]
[376657768,1754075025156,-460.0,0.00019461,2]
[376657769,1754075025179,-460.0,0.00019461,2]
[376657770,1754075025203,-460.0,0.00019461,2]
[376657771,1754075025226,-460.0,0.00019461,2]
[376657772,1754075025251,-460.0,0.00019461,2]
[376657773,1754075025275,-460.0,0.00019462,2]
[376657774,1754075025297,-460.0,0.00019462,2]
[376657775,1754075025322,-460.0,0.00019462,2]
[376657776,1754075025345,-460.0,0.00019462,2]
[376657777,1754075025369,-460.0,0.00019462,2]
[376657778,1754075025391,-460.0,0.00019462,2]
[376657779,1754075025414,-460.0,0.00019462,2]
[376657780,1754075025436,-460.0,0.00019462,2]
[376657781,1754075025461,-460.0,0.00019462,2]
[376657782,1754075025484,-460.0,0.00019462,2]
[376657783,1754075025508,-460.0,0.00019462,2]
[376657784,1754075025531,-460.0,0.00019462,2]
[376657785,1754075025555,-460.0,0.00019462,2]
[376657786,1754075025579,-460.0,0.00019462,2]
[376657787,1754075025603,-460.0,0.00019462,2]
[376657788,1754075025627,-460.0,0.00019462,2]
[376657789,1754075025650,-460.0,0.00019462,2]
[376657790,1754075025673,-460.0,0.00019734,2]
[376657791,1754075025696,-250.29,0.00019734,2]
[376657792,1754075025722,-460.0,0.00019734,2]
[376657793,1754075025747,-460.0,0.00019734,2]
[376657794,1754075025772,-460.0,0.00019734,2]
[376657795,1754075025794,-460.0,0.00019735,2]
[376657796,1754075025816,-460.0,0.00019735,2]
[376657797,1754075025839,-460.0,0.00019735,2]
[376657798,1754075025861,-460.0,0.00019735,2]
[376657799,1754075025884,-460.0,0.00019735,2]
[376657800,1754075025907,-460.0,0.00019735,2]
[376657801,1754075025930,-460.0,0.00019735,2]
[376657802,1754075025956,-215.24,0.00019735,2]
[376657803,1754075025978,-256.0,0.00019735,2]
[376657804,1754075026001,-460.0,0.00019735,2]
[376657805,1754075026026,-460.0,0.00019735,2]
[376657806,1754075026050,-460.0,0.00019735,2]
[376657807,1754075026074,-460.0,0.00019735,2]
[376657808,1754075026105,-460.0,0.00019735,2]
[376657809,1754075026130,-460.0,0.00019735,2]
[376657810,1754075026153,-460.0,0.00019735,2]
[376657811,1754075026176,-460.0,0.00019735,2]
[376657812,1754075026200,-460.0,0.00019735,2]
[376657813,1754075026223,-460.0,0.00019736,2]
[376657814,1754075026247,-460.0,0.00019736,2]
[376657815,1754075026269,-460.0,0.00019736,2]
[376657816,1754075026291,-460.0,0.00019736,2]
[376657817,1754075026314,-460.0,0.00019736,2]
[376657818,1754075026337,-460.0,0.00019736,2]
[376657819,1754075026363,-200.0,0.00019849,15]
[376657820,1754075026387,-200.0,0.00019849,15]
[376657821,1754075026410,-200.0,0.00019849,15]
[376657822,1754075026436,-200.0,0.00019849,15]
[376657823,1754075026523,169.53189435,0.0001936,2]
[376657824,1754075026553,243.45679335,0.0001946,2]
[376657825,1754075035623,378.81522656,0.00019461,2]
[376657826,1754075040461,460.0,0.00019461,2]
[376657827,1754075042370,460.0,0.00019461,2]
[376657828,1754075060154,460.0,0.0001946,2]
[376657829,1754075060397,460.0,0.00019734,2]
[376657830,1754075068146,460.0,0.00019461,2]
[376657831,1754075072480,460.0,0.00019461,2]
[376657832,1754075078375,460.0,0.00019461,2]
[376657833,1754075084600,460.0,0.00019461,2]
[376657834,1754075085014,472.7944988,0.00019735,2]
[376657835,1754075085045,209.26648088,0.0001946,2]
[376657836,1754075089258,460.0,0.0001946,2]
[376657837,1754075094428,460.0,0.0001946,2]
[376657838,1754075108348,159.503501,0.00013699,2]
[376657839,1754075110206,460.0,0.0001946,2]
[376657841,1754075113424,460.0,0.00019461,2]
[376657842,1754075113863,460.0,0.00019735,2]
[376657845,1754075136238,460.0,0.00019461,2]
[376657846,1754075136497,460.0,0.00019735,2]
[376657847,1754075140139,460.0,0.00019461,2]
[376657848,1754075140348,460.0,0.00019735,2]
[376657849,1754075143427,460.0,0.00019461,2]
[376657850,1754075143730,460.0,0.00019735,2]
[376657851,1754075144987,500.0,0.00019461,2]
[376657852,1754075152940,738.9,0.0001946,2]
[376657853,1754075152969,460.0,0.0001946,2]
[376657854,1754075153338,738.9,0.00019734,2]
[376657855,1754075167758,460.0,0.0001946,2]
[376657856,1754075175895,460.0,0.0001946,2]
[376657857,1754075176587,460.0,0.00019734,2]
[376657858,1754075184795,460.0,0.00019461,2]
[376657859,1754075187595,460.0,0.0001946,2]
[376657860,1754075187862,460.0,0.00019734,2]
[376657865,1754075204097,460.0,0.00019459,2]
[376657866,1754075204346,460.0,0.00019733,2]
[376657867,1754075206557,460.0,0.00019461,2]
[376657868,1754075210005,460.0,0.0001946,2]
[376657869,1754075217181,460.0,0.00019461,2]
[376657870,1754075220046,460.0,0.00019461,2]
[376657871,1754075220352,460.0,0.00019735,2]
[376657872,1754075229242,567.29,0.0001946,2]
[376657873,1754075232027,460.82141505,0.00019461,2]
[376657874,1754075237737,460.0,0.00019461,2]
[376657875,1754075239396,460.0,0.0001946,2]
[376657876,1754075239697,460.0,0.00019461,2]
[376657877,1754075239935,562.96,0.00019735,2]
[376657878,1754075240438,460.0,0.00019734,2]
[376657879,1754075245613,460.0,0.00019461,2]
[376657880,1754075245942,460.0,0.00019735,2]
[376657881,1754075265277,677.32,0.00019459,2]
[376657882,1754075266107,677.32,0.00019733,2]
[376657883,1754075269189,460.0,0.0001946,2]
[376657884,1754075274290,460.0,0.0001946,2]
[376657885,1754075285728,460.0,0.00019461,2]
[376657886,1754075285992,460.0,0.00019735,2]
[376657887,1754075286388,460.0,0.00019459,2]
[376657888,1754075287168,507.76,0.00019733,2]
[376657889,1754075288441,460.0,0.00019459,2]
[376657890,1754075288855,353.18,0.00019733,2]
[376657891,1754075298938,592.17,0.0001946,2]
[376657892,1754075301231,460.0,0.0001946,2]
[376657893,1754075304713,460.0,0.0001946,2]
[376657894,1754075309224,454.04788514,0.00019734,2]
[376657895,1754075316571,460.0,0.0001946,2]
[376657896,1754075321685,460.0,0.0001946,2]
[376657897,1754075321907,460.0,0.00019734,2]
[376657898,1754075326250,460.0,0.0001946,2]
[376657899,1754075333513,460.0,0.0001946,2]
[376657900,1754075333779,580.78,0.00019734,2]
[376657901,1754075361955,295.17,0.00019459,2]
[376657902,1754075362192,460.0,0.0001946,2]
[376657903,1754075364079,460.0,0.0001946,2]
[376657904,1754075377686,460.0,0.0001946,2]
[376657905,1754075382098,460.43917386,0.00019461,2]
[376657906,1754075392228,460.0,0.00019461,2]
[376657907,1754075392500,460.0,0.00019735,2]
[376657908,1754075400526,460.0,0.0001946,2]
[376657909,1754075400604,460.0,0.00019734,2]
[376657910,1754075413378,460.0,0.00019461,2]
[376657911,1754075413627,460.0,0.00019735,2]
[376657912,1754075414153,460.0,0.0001946,2]
[376657913,1754075414538,460.0,0.00019461,2]
[376657914,1754075414714,460.0,0.0001946,2]
[376657915,1754075416265,460.0,0.0001946,2]
[376657916,1754075416630,460.0,0.00019734,2]
[376657917,1754075420649,460.0,0.0001946,2]
[376657918,1754075421085,460.0,0.00019461,2]
[376657919,1754075421359,460.0,0.00019735,2]
[376657920,1754075422796,460.0,0.0001946,2]
[376657951,1754075432368,-460.0,0.00020007,2]
[376657952,1754075432378,-677.32,0.00020007,2]
[376657954,1754075432387,-460.0,0.00020008,2]
[376657956,1754075432396,-460.0,0.00020008,2]
[376657958,1754075432406,-460.0,0.00020008,2]
[376657959,1754075432415,-300.0,0.00020008,2]
[376657961,1754075432425,-460.0,0.00020008,2]
[376657963,1754075432434,-460.0,0.00020009,2]
[376657964,1754075432443,-460.0,0.00020009,2]
[376657966,1754075432452,-460.0,0.00020009,2]
[376657968,1754075432461,-460.0,0.00020009,2]
[376657970,1754075432470,-460.0,0.0002001,2]
[376657971,1754075432480,-460.0,0.0002001,2]
[376657973,1754075432490,-163.0,0.0002011,3]
[376657975,1754075432499,-1143.41175379,0.00020167,2]
[376657977,1754075432522,-1604.43204621,0.00020167,2]
[376657979,1754075432533,-460.0,0.00020281,2]
[376657981,1754075432543,-677.32,0.00020281,2]
[376657983,1754075432552,-460.0,0.00020282,2]
[376657984,1754075432562,-460.0,0.00020282,2]
[376657986,1754075432571,-460.0,0.00020282,2]
[376657988,1754075432581,-460.0,0.00020282,2]
[376657990,1754075432590,-505.18369366,0.00020283,2]
[376657991,1754075432599,-522.52,0.00020283,2]
[376657993,1754075432608,-200.0,0.00020408,15]
[376657995,1754075432617,-200.0,0.00020408,15]
[376657996,1754075432627,-200.0,0.00020408,15]
[376657998,1754075432636,-200.0,0.00020408,15]
[376657999,1754075432645,-200.0,0.00020408,15]
[376658001,1754075432654,-460.0,0.00020555,2]
[376658002,1754075432663,-677.32,0.00020555,2]
[376658003,1754075432673,-341.09,0.00020556,2]
[376658004,1754075432682,-460.0,0.00020556,2]
[376658005,1754075432694,-460.0,0.00020556,2]
[376658006,1754075432703,-460.0,0.00020556,2]
[376658007,1754075432712,-460.0,0.00020559,2]
[376658008,1754075432721,-460.0,0.00020559,2]
[376658009,1754075432731,-460.0,0.00020559,2]
[376658011,1754075432739,-234.81965792,0.00020789,2]
[376658013,1754075432748,-460.0,0.00020829,2]
[376658014,1754075432757,-677.32,0.00020829,2]
[376658016,1754075432767,-460.0,0.0002083,2]
[376658017,1754075432776,-460.0,0.0002083,2]
[376658019,1754075432785,-460.0,0.0002083,2]
[376658021,1754075432794,-460.0,0.00020832,2]
[376658022,1754075432803,-460.0,0.00020833,2]
[376658024,1754075432813,-460.0,0.00020833,2]
[376658026,1754075432823,-500.0,0.0002085,2]
[376658028,1754075432832,-460.0,0.00021103,2]
[376658029,1754075432842,-677.32,0.00021103,2]
[376658031,1754075432851,-460.0,0.00021104,2]
[376658033,1754075432861,-460.0,0.00021104,2]
[376658035,1754075432870,-460.0,0.00021104,2]
[376658036,1754075432879,-460.0,0.00021106,2]
[376658038,1754075432888,-460.0,0.00021107,2]
[376658040,1754075432897,-460.0,0.00021377,2]
[376658041,1754075432906,-677.32,0.00021377,2]
[376658043,1754075432915,-104.37891316,0.00021378,2]
[376658045,1754075432927,-56.38108684,0.00021378,2]
[376658047,1754075432937,-201.0,0.00021378,2]
[376658048,1754075432946,-460.0,0.00021378,2]
[376658050,1754075432955,-361.47,0.0002138,2]
[376658052,1754075432965,-313.51,0.00021381,2]
[376658054,1754075432973,-1000.0,0.00021398,2]
[376658055,1754075432982,-460.0,0.00021651,2]
[376658057,1754075432991,-677.32,0.00021651,2]
[376658059,1754075433001,-460.0,0.00021652,2]
[376658060,1754075433009,-245.0,0.00021786,2]
[376658062,1754075433019,-207.01441901,0.00021825,2]
[376658064,1754075433028,-450.27,0.00021925,2]
[376658066,1754075433041,-677.32,0.00021925,2]
[376658067,1754075433050,-460.0,0.00021926,2]
[376658069,1754075433060,-219.858863,0.00022149,2]
[376658071,1754075433071,-677.32,0.00022199,2]
[376658073,1754075433081,-400.25,0.000222,2]
[376658074,1754075433090,-168.819,0.00022252,2]
[376658076,1754075433101,-200.0,0.00022406,15]
[376658078,1754075433110,-200.0,0.00022406,15]
[376658079,1754075433119,-200.0,0.00022406,15]
[376658081,1754075433130,-200.0,0.00022406,15]
[376658083,1754075433140,-200.0,0.00022406,15]
[376658085,1754075433149,-200.0,0.00022406,15]
[376658086,1754075433158,-200.0,0.00022406,15]
[376658088,1754075433168,-677.32,0.00022473,2]
[376658090,1754075433181,-207.01441895,0.00022569,2]
[376658092,1754075433192,-677.32,0.00022747,2]
[376658093,1754075433202,-460.76838597,0.00022848,2]
[376658095,1754075433212,-150.0,0.000229,2]
[376658097,1754075433222,-160.0,0.00022954,2]
[376658098,1754075433234,-677.32,0.00023021,2]
[376658100,1754075433244,-677.32,0.00023295,2]
[376658102,1754075433254,-207.01441895,0.00023313,2]
[376658104,1754075433265,-677.32,0.00023569,2]
[376658105,1754075433276,-677.32,0.00023843,2]
[376658107,1754075433290,-159.503501,0.00023973,2]
[376658109,1754075433300,-207.01441895,0.00024057,2]
[376658110,1754075433311,-677.32,0.00024117,2]
[376658112,1754075433322,-500.0,0.00024383,10]
[376658114,1754075433333,-500.0,0.00024383,10]
[376658116,1754075433343,-538.02,0.00024383,10]
[376658118,1754075433355,-677.32,0.00024391,2]
[376658119,1754075433365,-200.0,0.00024599,15]
[376658121,1754075433375,-200.0,0.00024599,15]
[376658123,1754075433384,-200.0,0.00024599,15]
[376658125,1754075433394,-200.0,0.00024599,15]
[376658126,1754075433405,-200.0,0.00024599,15]
[376658128,1754075433415,-200.0,0.00024599,15]
[376658130,1754075433424,-200.0,0.00024599,15]
[376658132,1754075433434,-200.0,0.00024599,15]
[376658133,1754075433443,-358.0,0.00024599,15]
[376658135,1754075433452,-677.32,0.00024665,2]
[376658137,1754075433462,-430.28127806,0.000248,2]
[376658139,1754075433471,-207.01441895,0.00024802,2]
[376658140,1754075433480,-502.37384086,0.0002485,2]
[376658142,1754075433490,-152.04654358,0.0002485,2]